[Event "*** Titled Tuesday Blitz"]
[Site "Chess.com"]
[Date "2020.10.20"]
[Round "8"]
[White "giantslayer83"]
[Black "Zhigalko_Sergei"]
[Result "0-1"]
[WhiteElo "2710"]
[BlackElo "2930"]
[TimeControl "180+1"]
[EndTime "11:38:03 PDT"]
[Termination "Zhigalko_Sergei won by resignation"]

1. d4 {[%clk 0:03:00.9]} 1... Nf6 {[%clk 0:02:59.8]} 2. c4 {[%clk 0:03:00.8]}
2... e6 {[%clk 0:03:00.2]} 3. Nf3 {[%clk 0:03:00.8]} 3... b6 {[%clk 0:03:00.2]}
4. a3 {[%clk 0:03:00.5]} 4... Ba6 {[%clk 0:02:59.1]} 5. Qc2 {[%clk 0:02:58]}
5... Bb7 {[%clk 0:02:57.4]} 6. Nc3 {[%clk 0:02:57.3]} 6... c5 {[%clk 0:02:57.6]}
7. e4 {[%clk 0:02:57.5]} 7... cxd4 {[%clk 0:02:57.7]} 8. Nxd4 {[%clk 0:02:58.4]}
8... Nc6 {[%clk 0:02:56.9]} 9. Nb3 {[%clk 0:02:51.9]} 9... a5 {[%clk 0:02:51.1]}
10. Bg5 {[%clk 0:02:36.1]} 10... a4 {[%clk 0:02:38.9]} 11. Nd2 {[%clk 0:02:36]}
11... Bc5 {[%clk 0:02:37.5]} 12. Nf3 {[%clk 0:02:26.6]} 12... h6 {[%clk
0:01:49.1]} 13. Bh4 {[%clk 0:01:36.2]} 13... g5 {[%clk 0:01:48.1]} 14. Bg3
{[%clk 0:01:35.9]} 14... g4 {[%clk 0:01:48.3]} 15. Ne5 {[%clk 0:01:31.1]} 15...
Nd4 {[%clk 0:01:47.9]} 16. Qd1 {[%clk 0:01:31]} 16... Nxe4 {[%clk 0:01:43.5]}
17. Nxa4 {[%clk 0:00:56]} 17... Qg5 {[%clk 0:00:57.7]} 18. Nxc5 {[%clk
0:00:41.7]} 18... bxc5 {[%clk 0:00:54.5]} 19. Nd3 {[%clk 0:00:35.8]} 19... Nxg3
{[%clk 0:00:34.9]} 20. hxg3 {[%clk 0:00:36.7]} 20... Nf3+ {[%clk 0:00:25.4]} 21.
gxf3 {[%clk 0:00:20.1]} 21... Bxf3 {[%clk 0:00:26.3]} 22. Qd2 {[%clk 0:00:20]}
22... Bxh1 {[%clk 0:00:20.3]} 23. Qxg5 {[%clk 0:00:19.5]} 23... hxg5 {[%clk
0:00:21.2]} 24. Nxc5 {[%clk 0:00:20.4]} 24... Bf3 {[%clk 0:00:20.7]} 25. Kd2
{[%clk 0:00:20]} 25... Rh1 {[%clk 0:00:19.7]} 26. Rc1 {[%clk 0:00:17.2]} 26...
Ke7 {[%clk 0:00:14]} 27. Nd3 {[%clk 0:00:16.3]} 27... d6 {[%clk 0:00:08.7]} 28.
c5 {[%clk 0:00:16.2]} 28... dxc5 {[%clk 0:00:08.7]} 29. Nxc5 {[%clk 0:00:17.1]}
29... Rd8+ {[%clk 0:00:07.7]} 30. Ke3 {[%clk 0:00:15.3]} 30... Rd5 {[%clk
0:00:07.4]} 31. b4 {[%clk 0:00:14.6]} 31... f5 {[%clk 0:00:03.8]} 32. a4 {[%clk
0:00:10.5]} 32... e5 {[%clk 0:00:03.2]} 33. Nd3 {[%clk 0:00:09.3]} 33... f4+
{[%clk 0:00:03.1]} 34. Kd2 {[%clk 0:00:06.8]} 34... e4 {[%clk 0:00:03.7]} 35. a5
{[%clk 0:00:05.7]} 35... Rxd3+ {[%clk 0:00:02.3]} 36. Bxd3 {[%clk 0:00:05.5]}
36... Rxc1 {[%clk 0:00:02.3]} 37. Kxc1 {[%clk 0:00:05.7]} 37... exd3 {[%clk
0:00:03.2]} 38. Kd2 {[%clk 0:00:06]} 38... Be4 {[%clk 0:00:03.1]} 39. a6 {[%clk
0:00:05.1]} 39... Kd6 {[%clk 0:00:03.5]} 40. a7 {[%clk 0:00:03.8]} 40... Kc7
{[%clk 0:00:03.7]} 41. a8=Q {[%clk 0:00:03]} 41... Bxa8 {[%clk 0:00:04]} 42.
Kxd3 {[%clk 0:00:03.9]} 42... Kd6 {[%clk 0:00:04.4]} 43. Kd4 {[%clk 0:00:04.3]}
43... Bb7 {[%clk 0:00:04.7]} 44. b5 {[%clk 0:00:04.3]} 44... Bd5 {[%clk
0:00:04.9]} 45. b6 {[%clk 0:00:02.9]} 45... Bb7 {[%clk 0:00:05.2]} 46. Kc4
{[%clk 0:00:03.2]} 46... Ke6 {[%clk 0:00:03.4]} 47. Kd4 {[%clk 0:00:02.7]} 47...
Kd6 {[%clk 0:00:03.6]} 48. Kc4 {[%clk 0:00:03]} 48... Ba8 {[%clk 0:00:03.8]} 49.
Kd4 {[%clk 0:00:03.1]} 49... Bd5 {[%clk 0:00:04.4]} 50. Kc3 {[%clk 0:00:01.9]}
50... Kc5 {[%clk 0:00:04.7]} 51. Kd3 {[%clk 0:00:02.2]} 51... Kxb6 {[%clk
0:00:04.2]} 52. Kd4 {[%clk 0:00:02.5]} 52... Bf3 {[%clk 0:00:04.8]} 53. Ke5
{[%clk 0:00:02]} 53... fxg3 {[%clk 0:00:04.7]} 54. fxg3 {[%clk 0:00:02.1]} 54...
Kc5 {[%clk 0:00:05.6]} 55. Kf5 {[%clk 0:00:02.5]} 55... Kd4 {[%clk 0:00:06.5]}
56. Kxg5 {[%clk 0:00:03]} 56... Ke3 {[%clk 0:00:07.3]} 57. Kh5 {[%clk
0:00:03.4]} 57... Kf2 {[%clk 0:00:07.5]} 58. Kh4 {[%clk 0:00:04.3]} 58... Kg2
{[%clk 0:00:08.1]} 59. Kg5 {[%clk 0:00:04.3]} 59... Kxg3 {[%clk 0:00:09]} 0-1

[Event "*** Titled Tuesday Blitz"]
[Site "Chess.com"]
[Date "2020.10.20"]
[Round "8"]
[White "xberli"]
[Black "Bulldog167"]
[Result "0-1"]
[WhiteElo "2563"]
[BlackElo "2757"]
[TimeControl "180+1"]
[EndTime "11:38:06 PDT"]
[Termination "Bulldog167 won by resignation"]

1. d4 {[%clk 0:03:00.8]} 1... f5 {[%clk 0:02:59.1]} 2. c4 {[%clk 0:03:00.6]}
2... Nf6 {[%clk 0:02:42.2]} 3. Nc3 {[%clk 0:03:00.3]} 3... e6 {[%clk 0:02:42]}
4. Nf3 {[%clk 0:02:50.5]} 4... Bb4 {[%clk 0:02:42]} 5. e3 {[%clk 0:02:49.4]}
5... b6 {[%clk 0:02:41.6]} 6. Bd3 {[%clk 0:02:48.7]} 6... Bb7 {[%clk 0:02:42]}
7. O-O {[%clk 0:02:47.4]} 7... O-O {[%clk 0:02:42.1]} 8. d5 {[%clk 0:02:22.4]}
8... Na6 {[%clk 0:02:35.2]} 9. Ne2 {[%clk 0:02:11.5]} 9... Bd6 {[%clk
0:02:23.9]} 10. Ng3 {[%clk 0:01:41.8]} 10... Nc5 {[%clk 0:02:23.4]} 11. Bc2
{[%clk 0:01:40.4]} 11... a5 {[%clk 0:02:23.5]} 12. Nd4 {[%clk 0:01:33.9]} 12...
Ng4 {[%clk 0:02:10.6]} 13. b3 {[%clk 0:01:22.8]} 13... Qh4 {[%clk 0:02:08.9]}
14. Nf3 {[%clk 0:01:19.9]} 14... Qh6 {[%clk 0:01:41.9]} 15. e4 {[%clk
0:01:02.1]} 15... f4 {[%clk 0:01:15.3]} 16. Rb1 {[%clk 0:00:44]} 16... Ne5
{[%clk 0:00:59.4]} 17. Nxe5 {[%clk 0:00:38.8]} 17... Bxe5 {[%clk 0:01:00.3]} 18.
Ne2 {[%clk 0:00:38]} 18... Qh5 {[%clk 0:00:54.8]} 19. f3 {[%clk 0:00:32.7]}
19... Rf6 {[%clk 0:00:54.3]} 20. Rf2 {[%clk 0:00:24.2]} 20... Rh6 {[%clk
0:00:53.8]} 21. h3 {[%clk 0:00:20.2]} 21... Qg5 {[%clk 0:00:51.5]} 22. Kf1
{[%clk 0:00:18.1]} 22... Ba6 {[%clk 0:00:42.3]} 23. Bb2 {[%clk 0:00:15.7]} 23...
Bxb2 {[%clk 0:00:35.4]} 24. Rxb2 {[%clk 0:00:16.6]} 24... b5 {[%clk 0:00:35.8]}
25. Qd4 {[%clk 0:00:15.3]} 25... d6 {[%clk 0:00:35.8]} 26. e5 {[%clk 0:00:12.5]}
26... bxc4 {[%clk 0:00:29]} 27. bxc4 {[%clk 0:00:13.4]} 27... Qxe5 {[%clk
0:00:27.8]} 28. Qxe5 {[%clk 0:00:11.8]} 28... dxe5 {[%clk 0:00:28.7]} 29. dxe6
{[%clk 0:00:05.9]} 29... Bxc4 {[%clk 0:00:28.8]} 30. e7 {[%clk 0:00:05.1]} 30...
Re6 {[%clk 0:00:21.7]} 31. Kg1 {[%clk 0:00:01.9]} 31... Rxe7 {[%clk 0:00:21.4]}
32. Nc3 {[%clk 0:00:02.4]} 32... Rd8 {[%clk 0:00:19.5]} 33. Ne4 {[%clk
0:00:02.5]} 33... Nxe4 {[%clk 0:00:18]} 34. Bxe4 {[%clk 0:00:03.4]} 34... Rd1+
{[%clk 0:00:18.3]} 35. Kh2 {[%clk 0:00:03.7]} 35... Bd5 {[%clk 0:00:11.6]} 36.
Rfd2 {[%clk 0:00:02.6]} 36... Rxd2 {[%clk 0:00:11.6]} 37. Rxd2 {[%clk
0:00:03.5]} 37... Bxe4 {[%clk 0:00:12.2]} 38. fxe4 {[%clk 0:00:03.9]} 38... c6
{[%clk 0:00:10.6]} 39. Rc2 {[%clk 0:00:03.6]} 39... Kf7 {[%clk 0:00:05.5]} 40.
Rc5 {[%clk 0:00:04.1]} 40... Kf6 {[%clk 0:00:05.7]} 41. Rxc6+ {[%clk 0:00:03.4]}
41... Re6 {[%clk 0:00:06.2]} 42. Rc5 {[%clk 0:00:03.8]} 42... Rd6 {[%clk
0:00:05.6]} 43. Rxa5 {[%clk 0:00:03.6]} 43... Rd4 {[%clk 0:00:06.2]} 44. Ra6+
{[%clk 0:00:03.8]} 44... Kg5 {[%clk 0:00:05.6]} 45. Ra7 {[%clk 0:00:04]} 45...
Kh6 {[%clk 0:00:06]} 46. Ra6+ {[%clk 0:00:02.7]} 46... g6 {[%clk 0:00:06.5]} 47.
Re6 {[%clk 0:00:03]} 47... Rxe4 {[%clk 0:00:07]} 48. a4 {[%clk 0:00:03.5]} 48...
Re2 {[%clk 0:00:06.7]} 49. Kg1 {[%clk 0:00:03]} 49... Kg5 {[%clk 0:00:06.9]} 50.
a5 {[%clk 0:00:03.1]} 50... Kf5 {[%clk 0:00:07.1]} 51. Re7 {[%clk 0:00:03.3]}
51... Ra2 {[%clk 0:00:07.4]} 52. Rxh7 {[%clk 0:00:01.9]} 52... Rxa5 {[%clk
0:00:07.1]} 53. Rf7+ {[%clk 0:00:02.8]} 53... Ke6 {[%clk 0:00:06.7]} 54. Rg7
{[%clk 0:00:03]} 54... Kf6 {[%clk 0:00:06.9]} 55. Rb7 {[%clk 0:00:03.6]} 55...
g5 {[%clk 0:00:06.8]} 56. Kf2 {[%clk 0:00:03.7]} 56... e4 {[%clk 0:00:06.9]} 57.
g4 {[%clk 0:00:03.9]} 57... Ra2+ {[%clk 0:00:06.7]} 58. Kf1 {[%clk 0:00:03.9]}
58... Ke5 {[%clk 0:00:06.5]} 59. Rb5+ {[%clk 0:00:04.3]} 59... Kd4 {[%clk
0:00:07]} 60. Rxg5 {[%clk 0:00:04.4]} 60... f3 {[%clk 0:00:07.6]} 61. Rg8 {[%clk
0:00:03.7]} 61... Ke3 {[%clk 0:00:08]} 62. Kg1 {[%clk 0:00:03.8]} 62... Ra1+
{[%clk 0:00:07.8]} 63. Kh2 {[%clk 0:00:03.8]} 63... f2 {[%clk 0:00:08.3]} 64.
Rf8 {[%clk 0:00:04]} 64... f1=Q {[%clk 0:00:08.8]} 65. Rxf1 {[%clk 0:00:04.8]}
65... Rxf1 {[%clk 0:00:09.5]} 66. h4 {[%clk 0:00:05]} 66... Kf4 {[%clk 0:00:10]}
67. g5 {[%clk 0:00:05.4]} 67... e3 {[%clk 0:00:10.4]} 0-1

[Event "*** Titled Tuesday Blitz"]
[Site "Chess.com"]
[Date "2020.10.20"]
[Round "8"]
[White "ChessQueen"]
[Black "ViditYT"]
[Result "1/2-1/2"]
[WhiteElo "2712"]
[BlackElo "2912"]
[TimeControl "180+1"]
[EndTime "11:38:08 PDT"]
[Termination "Game drawn by repetition"]

1. e4 {[%clk 0:03:00.9]} 1... c5 {[%clk 0:02:56.6]} 2. c3 {[%clk 0:03:00.5]}
2... d5 {[%clk 0:02:53.8]} 3. exd5 {[%clk 0:03:00.6]} 3... Qxd5 {[%clk
0:02:54.7]} 4. d4 {[%clk 0:03:01.2]} 4... Nf6 {[%clk 0:02:55.2]} 5. Nf3 {[%clk
0:03:01.2]} 5... e6 {[%clk 0:02:53.3]} 6. Be2 {[%clk 0:03:01.4]} 6... Be7 {[%clk
0:02:52.6]} 7. O-O {[%clk 0:03:01]} 7... O-O {[%clk 0:02:52.7]} 8. c4 {[%clk
0:03:01.3]} 8... Qd8 {[%clk 0:02:48.7]} 9. dxc5 {[%clk 0:03:01.4]} 9... Nbd7
{[%clk 0:02:44.9]} 10. c6 {[%clk 0:02:58.5]} 10... bxc6 {[%clk 0:02:45]} 11. Nc3
{[%clk 0:02:58.7]} 11... c5 {[%clk 0:02:42.3]} 12. Bf4 {[%clk 0:02:56.5]} 12...
Bb7 {[%clk 0:02:41.2]} 13. h3 {[%clk 0:02:56]} 13... Qb6 {[%clk 0:02:39.6]} 14.
Qc2 {[%clk 0:02:54.8]} 14... Bc6 {[%clk 0:02:38.2]} 15. Rfd1 {[%clk 0:02:52.8]}
15... Rfd8 {[%clk 0:02:36.5]} 16. Rab1 {[%clk 0:02:45.9]} 16... Qb7 {[%clk
0:02:36.2]} 17. a3 {[%clk 0:02:38.6]} 17... h6 {[%clk 0:02:31.3]} 18. Nb5 {[%clk
0:02:29.6]} 18... Be4 {[%clk 0:02:25.8]} 19. Bd3 {[%clk 0:02:21.8]} 19... Bxf3
{[%clk 0:02:25.7]} 20. gxf3 {[%clk 0:02:22.1]} 20... Qxf3 {[%clk 0:02:26.3]} 21.
Bg3 {[%clk 0:02:22.4]} 21... Nb6 {[%clk 0:02:02.3]} 22. b4 {[%clk 0:02:09.6]}
22... Rd7 {[%clk 0:01:29.8]} 23. Be2 {[%clk 0:01:50.7]} 23... Qc6 {[%clk
0:01:23.9]} 24. Rxd7 {[%clk 0:01:45.5]} 24... Nbxd7 {[%clk 0:01:22.2]} 25. Qd3
{[%clk 0:01:37.4]} 25... Ne4 {[%clk 0:00:59.9]} 26. Bf3 {[%clk 0:01:34.8]} 26...
f5 {[%clk 0:00:59.8]} 27. Nc7 {[%clk 0:01:15.8]} 27... Rd8 {[%clk 0:00:58.7]}
28. b5 {[%clk 0:01:16]} 28... Qb6 {[%clk 0:00:40.4]} 29. Bxe4 {[%clk 0:01:14.9]}
29... Nf6 {[%clk 0:00:33.5]} 30. Bd5 {[%clk 0:01:15.1]} 30... exd5 {[%clk
0:00:30.9]} 31. Nxd5 {[%clk 0:01:00.8]} 31... Nxd5 {[%clk 0:00:31]} 32. cxd5
{[%clk 0:01:01.7]} 32... Qf6 {[%clk 0:00:31.3]} 33. Re1 {[%clk 0:00:59.8]} 33...
f4 {[%clk 0:00:30.7]} 34. Bh2 {[%clk 0:00:52.7]} 34... Bd6 {[%clk 0:00:30.5]}
35. Re6 {[%clk 0:00:45.8]} 35... Qg5+ {[%clk 0:00:29.8]} 36. Kf1 {[%clk
0:00:46.3]} 36... Qh5 {[%clk 0:00:26.7]} 37. a4 {[%clk 0:00:36.9]} 37... c4
{[%clk 0:00:22.5]} 38. Qg6 {[%clk 0:00:11.9]} 38... Qxh3+ {[%clk 0:00:18.1]} 39.
Kg1 {[%clk 0:00:12.4]} 39... Qa3 {[%clk 0:00:05.5]} 40. Re8+ {[%clk 0:00:10.6]}
40... Rxe8 {[%clk 0:00:03.5]} 41. Qxe8+ {[%clk 0:00:11.5]} 41... Kh7 {[%clk
0:00:02.9]} 42. Qe4+ {[%clk 0:00:12.4]} 42... Kg8 {[%clk 0:00:02.6]} 43. Qe6+
{[%clk 0:00:12.2]} 43... Kh7 {[%clk 0:00:01.9]} 44. Qf5+ {[%clk 0:00:12.5]}
44... Kg8 {[%clk 0:00:02.5]} 45. Qe6+ {[%clk 0:00:12.8]} 45... Kf8 {[%clk
0:00:03]} 46. Qf5+ {[%clk 0:00:12.2]} 46... Ke7 {[%clk 0:00:03.5]} 47. Bxf4
{[%clk 0:00:12.1]} 47... Bxf4 {[%clk 0:00:03.3]} 48. Qxf4 {[%clk 0:00:12.5]}
48... c3 {[%clk 0:00:04.1]} 49. Qe5+ {[%clk 0:00:12.7]} 49... Kd8 {[%clk
0:00:03.5]} 50. Qb8+ {[%clk 0:00:12.5]} 50... Kd7 {[%clk 0:00:03.6]} 51. Qb7+
{[%clk 0:00:13]} 51... Kd6 {[%clk 0:00:04.1]} 52. Qc6+ {[%clk 0:00:13.5]} 52...
Ke5 {[%clk 0:00:04.3]} 53. d6 {[%clk 0:00:14]} 53... Qxd6 {[%clk 0:00:02.8]} 54.
Qxc3+ {[%clk 0:00:13.8]} 54... Kf5 {[%clk 0:00:02.2]} 55. Qf3+ {[%clk
0:00:13.6]} 55... Ke6 {[%clk 0:00:02.1]} 56. Qe4+ {[%clk 0:00:13.8]} 56... Kf6
{[%clk 0:00:02.5]} 57. Qf3+ {[%clk 0:00:13.9]} 57... Ke6 {[%clk 0:00:01.8]} 58.
Qe4+ {[%clk 0:00:14.2]} 58... Kd7 {[%clk 0:00:01.8]} 59. Qb7+ {[%clk 0:00:14.1]}
59... Qc7 {[%clk 0:00:01.7]} 60. Qd5+ {[%clk 0:00:14.6]} 60... Kc8 {[%clk
0:00:01.8]} 61. Qa8+ {[%clk 0:00:14.6]} 61... Kd7 {[%clk 0:00:02.2]} 62. Qd5+
{[%clk 0:00:15.2]} 62... Kc8 {[%clk 0:00:02.7]} 63. Qa8+ {[%clk 0:00:15.3]}
63... Kd7 {[%clk 0:00:03.1]} 64. Qd5+ {[%clk 0:00:15.8]} 1/2-1/2

[Event "*** Titled Tuesday Blitz"]
[Site "Chess.com"]
[Date "2020.10.20"]
[Round "8"]
[White "juancruzarias"]
[Black "Chessalary"]
[Result "0-1"]
[WhiteElo "2533"]
[BlackElo "2372"]
[TimeControl "180+1"]
[EndTime "11:38:08 PDT"]
[Termination "Chessalary won by resignation"]

1. d4 {[%clk 0:02:57]} 1... Nf6 {[%clk 0:02:54.9]} 2. Nf3 {[%clk 0:02:57.2]}
2... g6 {[%clk 0:02:41.9]} 3. Bg5 {[%clk 0:02:57.3]} 3... Bg7 {[%clk 0:02:41.6]}
4. Nbd2 {[%clk 0:02:57.5]} 4... O-O {[%clk 0:02:41.1]} 5. c3 {[%clk 0:02:57.5]}
5... d5 {[%clk 0:02:40]} 6. e3 {[%clk 0:02:55.7]} 6... c6 {[%clk 0:02:40]} 7.
Be2 {[%clk 0:02:54.2]} 7... Bg4 {[%clk 0:02:39.6]} 8. O-O {[%clk 0:02:54.4]}
8... Bxf3 {[%clk 0:02:39]} 9. Nxf3 {[%clk 0:02:53.2]} 9... Nbd7 {[%clk
0:02:39.9]} 10. a4 {[%clk 0:02:50.9]} 10... h6 {[%clk 0:02:39.3]} 11. Bh4 {[%clk
0:02:50.7]} 11... Re8 {[%clk 0:02:38.4]} 12. b4 {[%clk 0:02:49.3]} 12... e5
{[%clk 0:02:35.5]} 13. Qb3 {[%clk 0:02:48.3]} 13... exd4 {[%clk 0:02:33.2]} 14.
cxd4 {[%clk 0:02:47.9]} 14... g5 {[%clk 0:02:33.5]} 15. Bg3 {[%clk 0:02:47.8]}
15... Ne4 {[%clk 0:02:33.6]} 16. Rfc1 {[%clk 0:02:20.4]} 16... h5 {[%clk
0:02:31.2]} 17. b5 {[%clk 0:02:07.5]} 17... h4 {[%clk 0:02:24.7]} 18. Be5 {[%clk
0:02:01.3]} 18... Nxe5 {[%clk 0:02:22.8]} 19. dxe5 {[%clk 0:02:00.2]} 19... c5
{[%clk 0:02:16.8]} 20. Rd1 {[%clk 0:01:59.3]} 20... c4 {[%clk 0:02:09.9]} 21.
Qb4 {[%clk 0:01:41]} 21... Bf8 {[%clk 0:01:57.2]} 22. Qb2 {[%clk 0:01:35]} 22...
Rc8 {[%clk 0:01:54.6]} 23. Rac1 {[%clk 0:01:31.1]} 23... c3 {[%clk 0:01:52]} 24.
Qb3 {[%clk 0:01:30.5]} 24... Rc5 {[%clk 0:01:48.8]} 25. Bd3 {[%clk 0:01:25]}
25... Qc7 {[%clk 0:01:45.1]} 26. Bxe4 {[%clk 0:01:18.1]} 26... dxe4 {[%clk
0:01:46]} 27. Nxg5 {[%clk 0:01:18]} 27... Rexe5 {[%clk 0:01:31.3]} 28. Nh3
{[%clk 0:01:18.1]} 28... c2 {[%clk 0:01:25.9]} 29. Rd2 {[%clk 0:01:09.2]} 29...
Rc3 {[%clk 0:01:26.2]} 30. Rdxc2 {[%clk 0:01:05.6]} 30... Rxc2 {[%clk
0:01:14.3]} 31. Rxc2 {[%clk 0:01:03.9]} 31... Qd7 {[%clk 0:01:13.1]} 32. Rc1
{[%clk 0:01:00.9]} 32... Rd5 {[%clk 0:01:06.3]} 33. Rf1 {[%clk 0:01:01.3]} 33...
Bd6 {[%clk 0:01:03.6]} 34. Kh1 {[%clk 0:00:56.2]} 34... Rd3 {[%clk 0:01:02.1]}
35. Qc4 {[%clk 0:00:54.8]} 35... Qe7 {[%clk 0:01:00]} 36. Qc8+ {[%clk
0:00:52.6]} 36... Kg7 {[%clk 0:00:48.9]} 37. Qg4+ {[%clk 0:00:52.3]} 37... Kf8
{[%clk 0:00:48.5]} 38. Ng5 {[%clk 0:00:52]} 38... Qe5 {[%clk 0:00:48.3]} 39. g3
{[%clk 0:00:44.9]} 39... Rd5 {[%clk 0:00:44.6]} 40. Nxe4 {[%clk 0:00:40.8]}
40... f5 {[%clk 0:00:42.5]} 41. Qg6 {[%clk 0:00:30.5]} 41... Qxe4+ {[%clk
0:00:36.4]} 42. Kg1 {[%clk 0:00:29.5]} 42... hxg3 {[%clk 0:00:21.6]} 43. hxg3
{[%clk 0:00:29.3]} 43... Qg4 {[%clk 0:00:09.8]} 44. Qe6 {[%clk 0:00:25.6]} 44...
Qe4 {[%clk 0:00:08.7]} 45. Qh6+ {[%clk 0:00:25.8]} 45... Kf7 {[%clk 0:00:08.4]}
46. Rc1 {[%clk 0:00:25.8]} 46... Rc5 {[%clk 0:00:07.6]} 47. Rd1 {[%clk 0:00:24]}
47... Be7 {[%clk 0:00:06]} 48. Qh5+ {[%clk 0:00:22.4]} 48... Ke6 {[%clk
0:00:05.4]} 49. Qg6+ {[%clk 0:00:21.6]} 49... Bf6 {[%clk 0:00:05]} 50. Qg8+
{[%clk 0:00:21.7]} 50... Ke7 {[%clk 0:00:04.9]} 51. Qd8+ {[%clk 0:00:20.4]}
51... Kf7 {[%clk 0:00:04.3]} 52. Rd7+ {[%clk 0:00:16.9]} 52... Be7 {[%clk
0:00:04.8]} 53. Rxe7+ {[%clk 0:00:05.4]} 53... Qxe7 {[%clk 0:00:05.7]} 54. Qd3
{[%clk 0:00:06]} 54... Rc1+ {[%clk 0:00:05.6]} 55. Kg2 {[%clk 0:00:06.4]} 55...
Qe4+ {[%clk 0:00:05.6]} 0-1

[Event "*** Titled Tuesday Blitz"]
[Site "Chess.com"]
[Date "2020.10.20"]
[Round "8"]
[White "Rubinstein_Akiba"]
[Black "vinniethepooh"]
[Result "0-1"]
[WhiteElo "2377"]
[BlackElo "2557"]
[TimeControl "180+1"]
[EndTime "11:38:22 PDT"]
[Termination "vinniethepooh won by checkmate"]

1. e4 {[%clk 0:03:00.5]} 1... c5 {[%clk 0:03:00.5]} 2. Be2 {[%clk 0:02:58.9]}
2... d6 {[%clk 0:03:01.1]} 3. f4 {[%clk 0:02:55.7]} 3... Nc6 {[%clk 0:03:01.7]}
4. Nf3 {[%clk 0:02:53.9]} 4... Nf6 {[%clk 0:02:59.3]} 5. d3 {[%clk 0:02:52.6]}
5... g6 {[%clk 0:02:57.1]} 6. O-O {[%clk 0:02:51.7]} 6... Bg7 {[%clk 0:02:57.5]}
7. Qe1 {[%clk 0:02:39.4]} 7... O-O {[%clk 0:02:48]} 8. Qh4 {[%clk 0:02:36.3]}
8... e6 {[%clk 0:02:46.6]} 9. c3 {[%clk 0:02:21]} 9... Nh5 {[%clk 0:02:38.4]}
10. Qxd8 {[%clk 0:02:18.7]} 10... Rxd8 {[%clk 0:02:39.3]} 11. Be3 {[%clk
0:02:04]} 11... b5 {[%clk 0:02:36.5]} 12. d4 {[%clk 0:01:57.3]} 12... cxd4
{[%clk 0:02:23.2]} 13. cxd4 {[%clk 0:01:58.2]} 13... a6 {[%clk 0:02:16.8]} 14.
Nbd2 {[%clk 0:01:37.5]} 14... Bb7 {[%clk 0:02:12.5]} 15. a4 {[%clk 0:01:26.9]}
15... Nb4 {[%clk 0:01:39.7]} 16. Rfc1 {[%clk 0:00:50.8]} 16... Rac8 {[%clk
0:01:31.4]} 17. Ne1 {[%clk 0:00:38.1]} 17... Nf6 {[%clk 0:01:14.6]} 18. axb5
{[%clk 0:00:26.5]} 18... axb5 {[%clk 0:01:15.5]} 19. Bf3 {[%clk 0:00:21.2]}
19... d5 {[%clk 0:01:09.7]} 20. e5 {[%clk 0:00:19.5]} 20... Ne4 {[%clk
0:01:09.4]} 21. Be2 {[%clk 0:00:16.5]} 21... Bc6 {[%clk 0:00:49.8]} 22. Nb3
{[%clk 0:00:16.6]} 22... Bf8 {[%clk 0:00:42]} 23. Nd3 {[%clk 0:00:16.6]} 23...
Nxd3 {[%clk 0:00:37.7]} 24. Bxd3 {[%clk 0:00:17.5]} 24... Bb4 {[%clk 0:00:33.1]}
25. g3 {[%clk 0:00:16.2]} 25... h5 {[%clk 0:00:32.1]} 26. Kg2 {[%clk 0:00:13.3]}
26... Kg7 {[%clk 0:00:31.3]} 27. Kf3 {[%clk 0:00:13.9]} 27... h4 {[%clk
0:00:30.2]} 28. Ke2 {[%clk 0:00:14.4]} 28... hxg3 {[%clk 0:00:29.5]} 29. hxg3
{[%clk 0:00:10.7]} 29... Nxg3+ {[%clk 0:00:29.6]} 30. Kf3 {[%clk 0:00:11]} 30...
Ne4 {[%clk 0:00:27.4]} 31. Ra6 {[%clk 0:00:10.3]} 31... Be8 {[%clk 0:00:15.1]}
32. Rb6 {[%clk 0:00:10.8]} 32... Rxc1 {[%clk 0:00:14.5]} 33. Bxc1 {[%clk
0:00:11.7]} 33... g5 {[%clk 0:00:04.8]} 34. Bxb5 {[%clk 0:00:12]} 34... Bxb5
{[%clk 0:00:05.3]} 35. Rxb5 {[%clk 0:00:12.9]} 35... Bf8 {[%clk 0:00:05.1]} 36.
fxg5 {[%clk 0:00:11.1]} 36... Kg6 {[%clk 0:00:05.6]} 37. Be3 {[%clk 0:00:11.2]}
37... Be7 {[%clk 0:00:04.6]} 38. Rb7 {[%clk 0:00:11]} 38... Bxg5 {[%clk
0:00:04.7]} 39. Bxg5 {[%clk 0:00:09.7]} 39... Nxg5+ {[%clk 0:00:05.6]} 40. Kf4
{[%clk 0:00:10.2]} 40... Rh8 {[%clk 0:00:04.6]} 41. Nc5 {[%clk 0:00:10.1]} 41...
Rh4+ {[%clk 0:00:04.9]} 42. Ke3 {[%clk 0:00:10.8]} 42... Rh3+ {[%clk 0:00:05.1]}
43. Kd2 {[%clk 0:00:09.6]} 43... Nf3+ {[%clk 0:00:05.4]} 44. Kd1 {[%clk
0:00:07.2]} 44... Nxd4 {[%clk 0:00:05.2]} 45. b4 {[%clk 0:00:07.7]} 45... Nc6
{[%clk 0:00:05.5]} 46. Nd7 {[%clk 0:00:06.4]} 46... Rb3 {[%clk 0:00:03.8]} 47.
b5 {[%clk 0:00:06.5]} 47... Nd4 {[%clk 0:00:04.1]} 48. Rb8 {[%clk 0:00:06.2]}
48... Rxb5 {[%clk 0:00:03.6]} 49. Rg8+ {[%clk 0:00:05.2]} 49... Kf5 {[%clk
0:00:04.1]} 50. Rg7 {[%clk 0:00:05.7]} 50... Nc6 {[%clk 0:00:02.8]} 51. Rxf7+
{[%clk 0:00:05.4]} 51... Ke4 {[%clk 0:00:03.3]} 52. Re7 {[%clk 0:00:05.6]} 52...
Nxe7 {[%clk 0:00:03.4]} 53. Nf6+ {[%clk 0:00:03.3]} 53... Kxe5 {[%clk
0:00:03.8]} 54. Nd7+ {[%clk 0:00:04.2]} 54... Kd6 {[%clk 0:00:04.2]} 55. Nf6
{[%clk 0:00:04.4]} 55... Nc6 {[%clk 0:00:04.5]} 56. Ne8+ {[%clk 0:00:05.3]}
56... Kc5 {[%clk 0:00:04.9]} 57. Nc7 {[%clk 0:00:05.7]} 57... e5 {[%clk
0:00:05.8]} 58. Ne6+ {[%clk 0:00:05]} 58... Kc4 {[%clk 0:00:06.1]} 59. Nc7
{[%clk 0:00:05.7]} 59... d4 {[%clk 0:00:06.6]} 60. Ne6 {[%clk 0:00:06.6]} 60...
e4 {[%clk 0:00:06.1]} 61. Nc7 {[%clk 0:00:07.5]} 61... e3 {[%clk 0:00:06.4]} 62.
Ne6 {[%clk 0:00:08.4]} 62... d3 {[%clk 0:00:06.5]} 63. Nf4 {[%clk 0:00:09.3]}
63... Rb1# {[%clk 0:00:06.8]} 0-1